Cogmind - Beta 10.2 @@@ ROGUE MODE // 2021.09.18 @ 18:56:20 Player: epillipses Result: Destroyed by as-38121 with Assembled Heavy Rifle Performance ------------- Evolutions (0) 0 Regions Visited (2) 400 Robots Destroyed (19) 95 Value Destroyed (358) 358 Prototype IDs (2) 40 Alien Tech Used (0) 0 Bonus (0) 0 TOTAL SCORE: 893 Bonus ------- None Cogmind --------- Core Integrity 0/250 Matter 154/300 Energy 94/100 System Corruption 10% Temperature Cool (0) Movement Core (50) Location -10/Mines Parts ------- > --- POWER (1) -------- (None) > --- PROPULSION (2) --- (None) > --- UTILITY (2) ------ Structural Scanner > --- WEAPON (2) ------- (None) > --- INVENTORY (4) ---- Datajack Peak State ------------ > --- POWER ------------ Ion Engine > --- PROPULSION ------- Wheel Wheel > --- UTILITY ---------- Small Storage Unit Structural Scanner > --- WEAPON ----------- Light Assault Rifle Light Assault Rifle > --- INVENTORY -------- Light Ion Engine Wheel Assault Rifle Grenade Launcher Datajack [Rating: 7] Favorites ----------- Power Ion Engine Engine Ion Engine Propulsion Wheel Wheel Wheel Hover Unit Hover Unit Utility Small Storage Unit Device Structural Scanner Storage Small Storage Unit Processor Signal Interpreter Protection Core Shielding Weapon Light Assault Rifle Energy Cannon Beam Cannon Ballistic Gun Light Assault Rifle Launcher Grenade Launcher Build | -11 -10 -10 ------- Run | Scr Mat Min Slots Evolved . | . . . Power . | . . . Propulsion . | . . . Utility . | . . . Weapon . | . . . Parts Attached 34 | 6 17 11 Power 4 | 1 3 . Engine 4 | 1 3 . Core . | . . . Reactor . | . . . Propulsion 10 | 2 7 1 Treads . | . . . Leg . | . . . Wheel 9 | 2 6 1 Hover 1 | . 1 . Flight . | . . . Utility 8 | 1 3 4 Device 3 | . 2 1 Storage 1 | 1 . . Processor 2 | . 1 1 Hackware . | . . . Protection 2 | . . 2 Artifact . | . . . Weapon 12 | 2 4 6 Energy Gun . | . . . Energy Cannon 1 | . . 1 Ballistic Gun 8 | 2 3 3 Ballistic Cannon . | . . . Launcher 3 | . 1 2 Special Weapon . | . . . Impact Weapon . | . . . Slashing Weapon . | . . . Piercing Weapon . | . . . Special Melee Weapon . | . . . Unidentified Prototypes . | . . . Parts Lost 11 | . . 11 Power 1 | . . 1 Propulsion 2 | . . 2 Utility 5 | . . 5 Weapon 3 | . . 3 Highest Loss Streak 9 | . . 9 Average Slot Usage (%) 79 | . 90 60 Engine 13 | . 14 11 Wheel 12 | . 19 . Hover 5 | . 3 9 Device 7 | . 10 2 Storage 6 | . 10 . Processor 6 | . 3 10 Protection 1 | . . 4 Ballistic Gun 20 | . 21 17 Launcher 4 | . 6 1 Naked Turns 15 | . . 15 Heaviest Build 15 | 11 15 7 Greatest Support 26 | 20 26 6 Greatest Overweight (x) 4 | . 4 2 Average Overweight (x) . | . . . Largest Inventory Capacity 6 | 6 6 4 Average Capacity 4 | 5 5 4 Most Carried 6 | 2 6 4 Average Carried 3 | . 4 3 Final Capacity 6 | 6 4 4 Final Carried 4 | 2 4 1 Class Distribution -------------------- 88% | Mutant 11% | Scavenger-Mutant Dominant Class ---------------- Mutant | -10/Materials Mutant | -10/Mines Resources | -11 -10 -10 ----------- Run | Scr Mat Min Matter Collected 558 | 177 263 118 Remotely 6 | . . 6 Salvage Created 426 | . 312 114 Parts 31 | . 24 7 Haulers Intercepted . | . . . Recyclers Shooed . | . . . Parts Field Recycled . | . . . Retrieved Matter . | . . . Parts Self-Destructed . | . . . Prevented . | . . . Kills | -11 -10 -10 ------- Run | Scr Mat Min Combat Hostiles Destroyed 17 | . 9 8 Melee 1 | . . 1 Guns 6 | . 4 2 AOE 10 | . 5 5 Classes Destroyed 7 | . 6 1 Worker 2 | . 2 . Tunneler 1 | . 1 . Recycler 1 | . 1 . Watcher 1 | . 1 . Swarmer 8 | . 5 3 Grunt 6 | . 4 2 Assembled 3 | . . 3 Best Kill Streak 11 | . 11 5 Combat Bots Only 5 | . 5 5 Max Kills in Single Turn 2 | . 2 2 Gunslinging . | . . . Exploded 2 | . 2 2 Melee 1 | . . 1 Uniques/NPCs Destroyed . | . . . Combat | -11 -10 -10 -------- Run | Scr Mat Min Damage Taken 913 | . 161 752 Core 259 | . 36 223 Absorbed by Shields . | . . . Core Remaining (%) 100 | 100 . . Volleys Fired 48 | . 27 21 Largest 2 | . 2 2 Hottest 80 | . 50 80 Shots Fired 75 | . 42 33 Gun 59 | . 35 24 Cannon 3 | . . 3 Launcher 13 | . 7 6 Special . | . . . Kinetic 59 | . 35 24 Thermal 3 | . . 3 Explosive 13 | . 7 6 Electromagnetic . | . . . Robot Hit Streak 8 | . 7 8 Robot Miss Streak 6 | . 5 6 Penetration Max . | . . . Secondary Targets . | . . . Shots Hit Robots 33 | . 16 17 Core Hits 37 | . 21 16 Critical Hits . | . . . Critical Kills . | . . . Critical Parts Destroyed . | . . . Melee Attacks . | . . . Impact . | . . . Slashing . | . . . Piercing . | . . . Sneak Attacks . | . . . Combat Hostiles . | . . . Follow-up Attacks . | . . . Damage Inflicted 1139 | . 608 531 Guns 273 | . 183 90 Cannons 34 | . . 34 Explosions 811 | . 425 386 Melee . | . . . Ramming 21 | . . 21 Kinetic 273 | . 183 90 Thermal 34 | . . 34 Explosive 811 | . 425 386 Electromagnetic . | . . . Impact . | . . . Slashing . | . . . Piercing . | . . . Highest Corruption 10 | . . 10 Average Corruption 7 | . . 7 Corruption Purged . | . . . Effects 5 | . . 5 Message Errors 1 | . . 1 Energy Discharges 1 | . . 1 Parts Rejected 1 | . . 1 Data Loss (minor) 1 | . . 1 Targeting Errors 1 | . . 1 Overload Shots . | . . . Overflow Damage 40 | . . 40 Projectiles . | . . . Explosions 40 | . . 40 Melee . | . . . Knockbacks . | . . . Impact . | . . . Kinetic . | . . . Secondary . | . . . Self-Inflicted Damage 42 | . . 42 Shots 3 | . . 3 Rammed 3 | . . 3 Targets Rammed 3 | . . 3 Kicked . | . . . Crushed . | . . . Highest Temperature 44 | . 8 44 Average Temperature 10 | . 2 13 Received Heat Transfer 75 | . 48 27 Siege Activations . | . . . Robots Corrupted . | . . . Combat Hostiles . | . . . Parts Fried . | . . . Impact Corruptions . | . . . Robots Melted . | . . . Combat Hostiles . | . . . Parts Melted . | . . . Heat Transferred 74 | . . 74 Parts Sabotaged . | . . . Parts Stolen . | . . . Parts Stripped . | . . . Power Chain Reactions . | . . . Missiles Intercepted . | . . . Alert | -11 -10 -10 ------- Run | Scr Mat Min Peak Influence 419 | . 419 201 Initial 91 | . . 91 Average 162 | . 172 169 Maximum Alert Level 2 | . 2 1 Low Security (%) 67 | 100 61 72 Level 1 24 | . 25 27 Level 2 7 | . 12 . Level 3 . | . . . Level 4 . | . . . Level 5 . | . . . High Security . | . . . Max Security . | . . . Squads Dispatched 3 | . 3 . Investigation . | . . . Extermination . | . . . Reinforcement 3 | . 3 . Assault . | . . . Garrison . | . . . Intercept . | . . . Construction Impeded . | . . . Haulers Reinforced . | . . . Stealth | -11 -10 -10 --------- Run | Scr Mat Min Distress Signals . | . . . Communications Jammed . | . . . Distress Signals . | . . . Times Spotted 38 | . 21 17 Peak Tracking Total 6 | . 4 6 Tactical Retreats 5 | . 2 3 Traps | -11 -10 -10 ------- Run | Scr Mat Min Traps Triggered . | . . . Indirectly . | . . . Trap Hack Attempts . | . . . Triggered . | . . . Disarmed . | . . . Reprogrammed . | . . . Reused . | . . . Traps Extracted . | . . . Installed . | . . . Triggered . | . . . Machines | -11 -10 -10 ---------- Run | Scr Mat Min Machines Disabled 3 | . 3 . Max in Single Turn 1 | . 1 . Machines Sabotaged . | . . . Garrisons Compromised . | . . . Overloaded Fab Kills . | . . . Fab Network Shutdowns . | . . . Hacking | -11 -10 -10 --------- Run | Scr Mat Min Machines Accessed 5 | . 5 . Terminals 3 | . 3 . Fabricators . | . . . Repair Stations . | . . . Recycling Units 2 | . 2 . Scanalyzers . | . . . Garrison Access . | . . . Total Hacks 13 | . 13 . Successful 10 | . 10 . Failed 3 | . 3 . Catastrophic 1 | . 1 . Database Lockouts . | . . . Manual 3 | . 3 . Terminals 11 | . 11 . Fabricators . | . . . Repair Stations . | . . . Recycling Units 2 | . 2 . Scanalyzers . | . . . Garrison Access . | . . . Terminal Hacks 8 | . 8 . Record 2 | . 2 . Prototype ID Bank 1 | . 1 . Branch Access Points 2 | . 2 . Alert Level 1 | . 1 . Recall Investigation 1 | . 1 . Zone Layout 1 | . 1 . Fabricator Hacks . | . . . Repair Station Hacks . | . . . Recycling Unit Hacks 2 | . 2 . Report Inventory 1 | . 1 . Retrieve Components 1 | . 1 . Scanalyzer . | . . . Garrison Access Hacks . | . . . Unauthorized Hacks . | . . . Terminals . | . . . Fabricators . | . . . Repair Stations . | . . . Recycling Units . | . . . Scanalyzers . | . . . Garrison Access . | . . . Data Cores Recovered . | . . . Used . | . . . Hacking Detections 4 | . 4 . Full Trace Events 1 | . 1 . Feedback Events . | . . . Feedback Blocked . | . . . Robot Schematics Acquired . | . . . Robots Built . | . . . Matter . | . . . Time . | . . . Total Robot Build Rating . | . . . Part Schematics Acquired . | . . . Parts Built . | . . . Matter . | . . . Time . | . . . Total Part Build Rating . | . . . Parts Repaired . | . . . Time . | . . . Parts Recycled . | . . . Recycled Matter . | . . . Retrieved Matter . | . . . Retrieved Components 6 | . 6 . Parts Scanalyzed . | . . . Part Schematics Acquired . | . . . Parts Damaged . | . . . Bothacking | -11 -10 -10 ------------ Run | Scr Mat Min Used RIF Installer . | . . . Robots Hacked . | . . . Non-combat . | . . . Combat . | . . . Robot Hacks Applied . | . . . Relay Couplers Released . | . . . Robots Rewired . | . . . Allies Hacked . | . . . Hacks Repelled . | . . . Allies | -11 -10 -10 -------- Run | Scr Mat Min Total Allies . | . . . Largest Group . | . . . Highest-Rated Group . | . . . Highest-Rated Ally . | . . . Total Orders . | . . . Ally Attacks . | . . . Total Damage . | . . . Kills . | . . . Allies Corrupted . | . . . Allies Melted . | . . . Intel | -11 -10 -10 ------- Run | Scr Mat Min Robot Analysis Total . | . . . Derelict Logs Recovered . | . . . Drone Launches . | . . . Drone Recoveries . | . . . Exploration | -11 -10 -10 ------------- Run | Scr Mat Min Turns Passed 734 | 36 435 263 Spaces Moved 760 | 32 443 285 Core 93 | 1 2 90 Treads . | . . . Legs . | . . . Wheels 327 | 31 296 . Hover 340 | . 145 195 Flight . | . . . Fastest Speed 50 | 50 60 50 Average Speed 72 | 79 74 68 Slowest Speed 250 | 80 250 150 Overloaded Moves . | . . . Propulsion Burnouts . | . . . Robots Hopped . | . . . Cave-ins Triggered . | . . . Exploration Rate (%) 45 | 4 64 69 Regions Visited 2 Branch Regions 1 Pre-discovered Areas . | . . . Known Exits Taken 1 | . 1 . Unknown Exits Taken 1 | 1 . . Scrap Searched 1 | . . 1 Spaces Dug . | . . . Terrain Destroyed 61 | . 28 33 Melee . | . . . Projectile . | . . . AOE 61 | . 28 33 Terrain Rammed . | . . . Walls Destroyed . | . . . Machines Disabled . | . . . Actions | -11 -10 -10 --------- Run | Scr Mat Min Total 871 | 39 511 321 Wait 2 | . 2 . Move 758 | 31 442 285 Hop . | . . . Pick Up 8 | 2 6 . Fast Attach 20 | 6 10 4 Attach 5 | . 2 3 Detach 3 | . 3 . Swap 9 | . 5 4 Drop 15 | . 14 1 Fire 48 | . 27 21 Melee . | . . . Ram 3 | . . 3 Kick . | . . . Crush . | . . . Escape Stasis . | . . . Rewire . | . . . Trap . | . . . Miscellaneous . | . . . Route ------- -11/Scrapyard -10/Materials (discovered 4 exits: [*Mat x2] / *Min x2) -10/Mines (discovered 1 exit: [*Mat]) History --------- Turn | Location | Event 18 | -11/Scrapyard | Discovered new exit (range 16) 37 | -11/Scrapyard | Entered Materials 143 | -10/Materials | Identified exit to Mines 154 | -10/Materials | Discovered new exit (range 14) 303 | -10/Materials | Build established: Mutant 448 | -10/Materials | Discovered new exit (range 15) 472 | -10/Materials | Entered Mines 478 | -10/Mines | Discovered new exit (range 15) 562 | -10/Mines | Assembled infested the area 676 | -10/Mines | Core integrity fell below 50% 709 | -10/Mines | System corruption reached 10% 721 | -10/Mines | Core integrity fell below 20% 735 | -10/Mines | Destroyed by as-38121 with Assembled Heavy Rifle Last Messages --------------- 00678_ Signal Interpreter destroyed. 00678_ System corrupted by crushing effect (+1). 00689_ Acquired Wheel. 00690_ P H5Z/NJ:RY